bitfinex/quotes_SOLUSD_20260223
["timestamp","ask_amount","ask_price","bid_price","bid_amount"]
[1771877737793,12.3882731,78.19,78.16,3.51488769]
[1771877738094,3.56272212,78.199,78.161,3.51488769]
[1771877739596,3.56272212,78.199,78.16,12.3882731]
[1771877739597,12.3882731,78.19,78.16,3.51488769]
[1771877739895,3.56272212,78.189,78.151,3.51488769]
[1771877740093,3.56272212,78.179,78.151,3.51488769]
[1771877740291,12.3882731,78.17,78.142,3.51488769]
[1771877740979,12.3882731,78.16,78.141,12.79737909]
[1771877741181,15.95099522,78.16,78.141,12.79737909]
[1771877741380,15.93331011,78.16,78.141,12.79737909]
[1771877741693,3.56272212,78.158,78.133,12.79859416]
[1771877741893,12.37058799,78.16,78.134,3.51488769]
[1771877742097,12.37058799,78.17,78.134,3.51488769]
[1771877742277,12.37058799,78.17,78.141,3.51488769]
[1771877742481,51.15028722,78.201,78.141,3.51488769]
[1771877742482,12.79164961,78.176,78.141,3.51488769]
[1771877742784,3.56272212,78.169,78.141,3.51488769]
[1771877743783,3.56272212,78.169,78.142,16.31210301]
[1771877743990,3.56272212,78.177,78.143,3.51488769]
[1771877744171,3.56272212,78.189,78.151,3.51488769]
[1771877744373,3.56272212,78.189,78.16,15.88547568]
[1771877744789,3.56272212,78.189,78.16,3.51488769]
[1771877745391,3.56272212,78.189,78.151,3.51488769]
[1771877745797,3.56272212,78.169,78.141,12.79734675]
[1771877746093,3.56272212,78.169,78.142,3.51488769]
[1771877747603,3.56272212,78.179,78.142,3.51488769]
[1771877747792,3.55616653,78.177,78.143,12.79705155]
[1771877748679,3.55616653,78.169,78.143,12.79705155]
[1771877749802,3.55616653,78.169,78.136,3.60373416]
[1771877750899,3.55616653,78.169,78.141,3.60373416]
[1771877751403,3.55616653,78.159,78.135,12.7983618]
[1771877751904,3.55616653,78.159,78.135,31.99590452]
[1771877752103,3.55616653,78.159,78.135,35.59963868]
[1771877752301,3.55616653,78.157,78.121,3.60373416]
[1771877752602,3.55616653,78.157,78.131,3.60373416]
[1771877753100,3.69383402,78.185,78.116,44.80516154]
[1771877753101,3.55616653,78.149,78.121,3.60373416]
[1771877753805,3.55616653,78.139,78.116,12.80147472]
[1771877754389,3.55616653,78.139,78.116,16.40520888]
[1771877755588,3.55616653,78.147,78.117,3.60373416]
[1771877755901,3.55616653,78.147,78.122,12.80049153]
[1771877756299,3.55616653,78.147,78.105,3.60373416]
[1771877756603,3.69383402,78.155,78.053,103.9]
[1771877756604,3.55616653,78.139,78.11,15.97432215]
[1771877756908,3.55616653,78.139,78.111,3.60373416]
[1771877758410,12.37058799,78.16,78.121,3.60373416]
[1771877759320,12.37058799,78.15,78.121,3.60373416]
[1771877759490,12.37058799,78.14,78.1,12.37058799]
[1771877759694,3.69383402,78.155,78.105,3.60373416]
[1771877759993,12.37058799,78.15,78.111,3.60373416]
[1771877760199,12.79623278,78.148,78.113,3.60373416]
[1771877760408,12.37058799,78.14,78.113,3.60373416]
[1771877760622,15.5594805,78.14,78.113,3.60373416]
[1771877760913,12.79623278,78.148,78.112,12.80213027]
[1771877761092,3.1928157,78.139,78.11,3.60373416]
[1771877761795,3.19663942,78.147,78.111,3.60373416]
[1771877762010,12.37058799,78.14,78.111,3.60373416]
[1771877762401,12.79494842,78.156,78.121,3.60373416]
[1771877762603,3.19663942,78.162,78.112,12.80213027]
[1771877762604,3.19663942,78.162,78.131,3.60373416]
[1771877762809,3.20041684,78.159,78.123,3.60373416]
[1771877763114,3.20041684,78.169,78.131,3.60373416]
[1771877764823,12.79295875,78.168,78.133,3.60373416]
[1771877765112,3.20781693,78.167,78.133,3.60373416]
[1771877765309,3.20781693,78.159,78.128,12.79939875]
[1771877765795,3.20781693,78.159,78.125,3.60373416]
[1771877766037,3.20781693,78.159,78.127,3.60373416]
[1771877766197,103.5,78.189,78.126,12.79983616]
[1771877766198,12.37058799,78.18,78.151,3.60373416]
[1771877766396,3.55616653,78.18,78.151,0.04129055]
[1771877766904,3.55616653,78.18,78.151,12.79574157]
[1771877767600,16.34721967,78.18,78.151,12.79574157]
[1771877767903,3.55616653,78.179,78.151,12.79574157]
[1771877768291,3.55616653,78.179,78.152,3.60373416]
[1771877769215,3.55616653,78.179,78.153,12.79541412]
[1771877770216,3.55616653,78.178,78.153,12.79541412]
[1771877770816,3.55616653,78.169,78.146,12.79653673]
[1771877771201,3.55616653,78.169,78.146,3.60373416]
[1771877771514,12.37058799,78.19,78.151,3.60373416]
[1771877771715,3.55616653,78.186,78.151,3.60373416]
[1771877772018,12.37058799,78.18,78.151,3.60373416]
[1771877772220,3.55616653,78.186,78.151,3.60373416]
[1771877772518,3.55616653,78.194,78.17,15.97432215]
[1771877772718,3.55616653,78.194,78.171,3.60373416]
[1771877773294,3.55616653,78.194,78.172,12.79230414]
[1771877774696,3.55616653,78.229,78.181,3.60373416]
[1771877774914,3.55616653,78.219,78.191,3.60373416]
[1771877775118,3.55616653,78.227,78.2,12.37058799]
[1771877775299,3.55616653,78.227,78.202,16.3911309]
[1771877775497,3.55616653,78.239,78.203,3.60373416]
[1771877775701,3.55616653,78.235,78.203,3.60373416]
[1771877776006,3.55616653,78.229,78.2,12.37058799]
[1771877776228,3.55616653,78.229,78.198,16.39170764]
[1771877776522,3.55616653,78.219,78.191,12.78919568]
[1771877776712,3.55616653,78.219,78.192,3.60373416]
[1771877777407,3.55616653,78.229,78.194,3.60373416]
[1771877778521,3.44059488,78.219,78.194,3.60373416]
[1771877778817,3.44059488,78.219,78.186,12.78989873]
[1771877779400,3.44059488,78.217,78.186,12.78989873]
[1771877779602,3.44059488,78.199,78.171,12.79246779]
[1771877780915,12.37058799,78.2,78.171,12.79246779]
[1771877781123,3.65666493,78.219,78.18,12.37058799]
[1771877781623,3.65666493,78.219,78.182,3.31223917]
[1771877782415,3.65666493,78.219,78.191,3.31223917]
[1771877783511,3.65666493,78.199,78.174,12.79197687]
[1771877784908,3.65666493,78.207,78.18,12.37058799]
[1771877785608,3.65666493,78.207,78.176,12.79164961]
[1771877786121,3.65666493,78.207,78.177,3.31223917]
[1771877786821,3.65666493,78.206,78.176,44.77077363]
[1771877787014,3.65666493,78.206,78.176,48.0830128]
[1771877788408,3.65666493,78.206,78.177,3.31223917]
[1771877788808,12.78605604,78.342,78.176,31.97912402]
[1771877788809,3.65666493,78.215,78.181,3.31223917]
[1771877789730,3.65666493,78.209,78.181,3.31223917]
[1771877790525,3.65666493,78.219,78.19,12.37058799]
[1771877790710,3.65666493,78.209,78.182,12.79066792]
[1771877792431,44.74616141,78.219,78.183,3.31223917]
[1771877792432,3.65666493,78.218,78.183,3.31223917]
[1771877792826,12.78494444,78.217,78.184,12.79034073]
[1771877793016,3.65666493,78.216,78.185,3.31223917]
[1771877793329,16.02725292,78.21,78.185,3.31223917]
[1771877794328,16.02725292,78.21,78.184,12.79034073]
[1771877794329,3.65666493,78.209,78.184,12.79034073]
[1771877794533,12.37058799,78.2,78.184,12.79034073]
[1771877794717,3.65666493,78.199,78.184,12.79034073]
[1771877795029,3.65666493,78.199,78.171,12.79246779]
[1771877795327,3.65666493,78.179,78.065,3.31223917]
[1771877795632,12.37058799,78.15,78.121,3.31223917]
[1771877795815,3.65666493,78.152,78.121,3.31223917]
[1771877796016,12.37058799,78.16,78.121,3.31223917]
[1771877796017,16.02725292,78.16,78.121,3.31223917]
[1771877796424,3.65666493,78.159,78.121,3.31223917]
[1771877797013,3.65666493,78.187,78.123,3.31223917]
[1771877797221,3.65666493,78.169,78.131,3.31223917]
[1771877797530,3.69383402,78.194,78.131,3.31223917]
[1771877797531,16.02725292,78.16,78.131,3.31223917]
[1771877798413,3.65666493,78.168,78.141,3.31223917]
[1771877798629,3.65666493,78.168,78.132,3.31223917]
[1771877798934,3.65666493,78.176,78.141,3.31223917]
[1771877799314,3.65666493,78.176,78.14,12.37058799]
[1771877799315,3.65666493,78.176,78.143,3.31223917]
[1771877799732,31.97053595,78.197,78.142,44.79025363]
[1771877799733,3.65666493,78.228,78.17,12.37058799]
[1771877799917,3.65666493,78.209,78.18,12.37058799]
[1771877800534,3.65666493,78.209,78.178,3.31223917]
[1771877800738,3.65666493,78.199,78.17,12.37058799]
[1771877801036,3.65666493,78.199,78.171,3.31223917]
[1771877801731,3.65666493,78.209,78.173,3.31223917]
[1771877802529,16.44291715,78.209,78.173,3.31223917]
[1771877802721,12.35712199,78.2,78.173,3.31223917]
[1771877803131,3.65666493,78.209,78.173,3.31223917]
[1771877803637,3.65666493,78.209,78.174,48.08415822]
[1771877803839,3.65666493,78.209,78.175,3.31223917]
[1771877806147,31.95765196,78.229,78.157,5.36086188]
[1771877806148,0.2,78.25,78.18,12.35712199]
[1771877806331,3.65666493,78.227,78.191,3.31223917]
[1771877806541,12.35712199,78.24,78.201,3.31223917]
[1771877806834,0.2,78.25,78.176,159.89562012]
[1771877806835,12.55712199,78.25,78.211,3.31223917]
[1771877807139,25.33676739,78.25,78.22,3.31223917]
[1771877807443,12.55712199,78.25,78.22,3.31223917]
[1771877808347,12.55712199,78.25,78.221,12.78429066]
[1771877808527,12.35712199,78.24,78.216,12.7850158]
[1771877808723,3.3905172,78.242,78.217,3.4064673]
[1771877809149,15.94763919,78.25,78.217,3.4064673]
[1771877809451,3.3905172,78.249,78.217,3.4064673]
[1771877810327,3.3905172,78.249,78.219,3.4064673]
[1771877810540,12.55712199,78.25,78.219,3.4064673]
[1771877810738,12.55712199,78.25,78.218,44.74673348]
[1771877810739,0.2,78.25,78.221,3.4064673]
[1771877811448,3.3905172,78.239,78.209,3.4064673]
[1771877812528,3.3905172,78.239,78.21,12.78608873]
[1771877812745,3.3905172,78.239,78.211,3.4064673]
[1771877814147,3.3905172,78.237,78.211,3.4064673]
[1771877814736,3.3905172,78.247,78.213,3.4064673]
[1771877815241,1.89052825,78.239,78.213,3.4064673]
[1771877815634,12.35712199,78.23,78.213,3.4064673]
[1771877815845,1.89052825,78.239,78.213,3.4064673]
[1771877816033,12.35712199,78.24,78.213,3.4064673]
[1771877816458,12.55712199,78.25,78.213,3.4064673]
[1771877816955,12.55712199,78.25,78.194,102.3095481]
[1771877816956,0.2,78.25,78.221,3.4064673]
[1771877817454,3.3905172,78.239,78.214,12.78543483]
[1771877817642,3.3905172,78.239,78.208,3.4064673]
[1771877817643,12.35712199,78.23,78.209,3.4064673]
[1771877818735,12.55712199,78.25,78.2,12.78764621]
[1771877818736,15.74763919,78.22,78.2,12.78764621]
[1771877818941,12.35712199,78.22,78.2,12.78764621]
[1771877819134,3.3905172,78.229,78.201,3.4064673]
[1771877819549,16.17350049,78.229,78.201,3.4064673]
[1771877820444,3.3905172,78.229,78.201,3.4064673]
[1771877820628,3.3905172,78.227,78.202,12.78739674]
[1771877820829,3.3905172,78.227,78.142,51.18842565]
[1771877820830,12.35712199,78.21,78.183,3.4064673]
[1771877821328,12.35712199,78.21,78.11,8.10257361]
[1771877821329,3.3905172,78.2,78.174,3.4064673]
[1771877821540,44.74101343,78.228,78.174,3.4064673]
[1771877821541,12.35712199,78.21,78.174,3.4064673]
[1771877821742,3.3905172,78.207,78.174,3.4064673]
[1771877821943,12.35712199,78.2,78.174,3.4064673]
[1771877822450,12.35712199,78.19,78.171,12.79246779]
[1771877822655,12.35712199,78.18,78.157,3.4064673]
[1771877822841,3.3905172,78.179,78.153,12.79541412]
[1771877823038,3.3905172,78.179,78.153,16.20188142]
[1771877823236,3.3905172,78.179,78.154,3.4064673]
[1771877823540,12.35712199,78.17,78.154,3.4064673]
[1771877823746,12.35712199,78.17,78.148,12.7961576]
[1771877824147,12.35712199,78.17,78.127,5.36086188]
[1771877824148,12.35712199,78.16,78.134,3.4064673]
[1771877824453,12.35712199,78.16,78.121,12.80065539]
[1771877824454,3.3905172,78.158,78.126,3.4064673]
[1771877824750,3.3905172,78.158,78.128,3.4064673]
[1771877824955,12.35712199,78.15,78.128,3.4064673]
[1771877826337,12.35712199,78.15,78.107,5.36086188]
[1771877826338,12.35712199,78.14,78.118,3.4064673]
[1771877826533,12.35712199,78.14,78.11,3.4064673]
[1771877826754,15.74763919,78.13,78.111,12.80229417]
[1771877826955,3.3905172,78.129,78.111,12.80229417]
[1771877827258,12.35712199,78.12,78.099,3.4064673]
[1771877827955,3.3905172,78.129,78.099,3.4064673]
[1771877828451,12.35712199,78.14,78.101,3.4064673]
[1771877828759,3.3905172,78.139,78.103,3.4064673]
[1771877829645,3.3905172,78.138,78.103,3.4064673]
[1771877830049,12.35712199,78.13,78.103,3.4064673]
[1771877830239,3.3905172,78.129,78.102,12.80376942]
[1771877830640,3.3905172,78.129,78.102,16.21023672]
[1771877830840,31.99223169,78.144,78.102,12.80376942]
[1771877830841,12.35712199,78.12,78.102,12.80376942]
[1771877831152,12.35712199,78.12,78.097,12.80456178]
[1771877831543,3.3905172,78.127,78.097,12.80456178]
[1771877832456,12.35712199,78.15,78.09,12.45712199]
[1771877832457,3.25024703,78.109,78.09,0.1]
[1771877832634,12.35712199,78.1,78.078,12.80770511]
[1771877832839,3.3905172,78.099,78.069,3.4064673]
[1771877833041,3.3905172,78.098,78.07,12.80901754]
[1771877834244,12.35712199,78.1,78.071,3.4064673]
[1771877834445,12.80210193,78.113,78.081,3.4064673]
[1771877834740,15.74763919,78.11,78.082,12.80704899]
[1771877834938,3.3905172,78.109,78.082,12.80704899]
[1771877835136,12.80180249,78.114,78.065,12.80983795]
[1771877835137,3.3905172,78.099,78.065,12.80983795]
[1771877835560,12.35712199,78.12,78.08,12.35712199]
[1771877835753,3.3905172,78.109,78.071,3.4064673]
[1771877835943,3.3905172,78.099,78.065,44.83443283]
[1771877836139,3.3905172,78.099,78.065,48.24090013]
[1771877836540,3.3905172,78.099,78.071,3.4064673]
[1771877836838,3.3905172,78.099,78.072,12.80868941]
[1771877839758,3.3905172,78.099,78.05,0.1]
[1771877839759,12.35712199,78.09,78.05,0.1]
[1771877839957,3.66558328,78.079,78.051,16.37748325]
[1771877840656,103.5,78.12,78.07,12.35712199]
[1771877840657,3.50191338,78.099,78.07,12.35712199]
[1771877840860,3.50191338,78.099,78.08,12.35712199]
[1771877841043,3.50191338,78.099,78.07,12.35712199]
[1771877841245,3.50191338,78.099,78.061,3.72673808]
[1771877842159,3.70191338,78.099,78.061,3.72673808]
[1771877842764,3.70191338,78.099,78.071,3.72673808]
[1771877842959,3.50191338,78.115,78.09,12.35712199]
[1771877843160,3.50191338,78.123,78.091,3.52673808]
[1771877844063,3.50191338,78.119,78.08,12.35712199]
[1771877844461,3.50191338,78.119,78.09,12.35712199]
[1771877844960,3.50191338,78.119,78.091,12.80557298]
[1771877845265,3.50191338,78.119,78.081,12.80721302]
[1771877845469,3.50191338,78.109,78.081,12.80721302]
[1771877846550,3.50191338,78.107,78.081,12.80721302]
[1771877846948,12.80278588,78.108,78.071,12.80885347]
[1771877846949,3.50191338,78.099,78.071,12.80885347]
[1771877848071,3.50191338,78.089,78.061,3.72673808]
[1771877848371,3.50191338,78.089,78.059,32.02702885]
[1771877849376,3.50191338,78.089,78.059,35.75376693]
[1771877850961,3.50191338,78.089,78.059,48.56458951]
[1771877851949,3.50191338,78.098,78.061,3.72673808]
[1771877853357,3.50191338,78.098,78.063,3.72673808]
[1771877853754,3.50191338,78.089,78.063,3.72673808]
[1771877853958,3.50191338,78.089,78.062,12.81033025]
[1771877854875,3.50191338,78.089,78.062,16.53706833]
[1771877856886,3.50191338,78.087,78.062,16.53706833]
[1771877857084,3.50191338,78.087,78.053,32.02935865]
[1771877857085,3.50191338,78.087,78.055,16.53811438]
[1771877857382,13.00606495,78.088,78.055,12.8113763]
[1771877857383,3.50191338,78.079,78.055,12.8113763]
[1771877857956,0.2,78.078,78.054,3.72673808]
[1771877859970,3.70191338,78.078,78.055,12.81147908]
[1771877860187,3.50191338,78.069,78.051,12.81213565]
[1771877860787,3.50191338,78.069,78.05,0.1]
[1771877863377,12.40099788,78.06,78.05,0.1]
[1771877863674,12.40099788,78.06,78.04,0.1]
[1771877863675,3.50191338,78.059,78.04,0.1]
[1771877863883,3.50191338,78.049,78.03,0.1]
[1771877864075,12.40099788,78.04,78.03,0.1]
[1771877864683,12.40099788,78.04,78.014,12.81806473]
[1771877864684,3.50191338,78.039,78.014,12.81806473]
[1771877864865,12.40099788,78.03,78.011,16.54544313]
[1771877865065,3.50191338,78.029,78.004,3.72673808]
[1771877865372,12.40099788,78.04,78.004,3.72673808]
[1771877865876,12.40099788,78.04,78.011,3.72673808]
[1771877866568,12.40099788,78.04,78.013,3.72673808]
[1771877867259,3.50191338,78.039,78.013,3.72673808]
[1771877867455,12.40099788,78.03,78.001,12.82022723]
[1771877867779,32.02992876,78.052,78.001,12.82022723]
[1771877867780,12.40099788,78.02,78.001,12.82022723]
[1771877867978,12.40099788,78.03,78.002,3.69019036]
[1771877868180,3.46147465,78.029,78.002,3.69019036]
[1771877868391,12.40099788,78.02,77.995,3.69019036]
[1771877868589,12.40099788,78.02,77.951,51.31384892]
[1771877868590,12.40099788,78.01,77.988,3.69019036]
[1771877868991,12.40099788,78.01,77.989,12.82232109]
[1771877869992,12.40099788,78.02,77.99,16.09118824]
[1771877870173,3.46147465,78.043,78.011,3.69019036]
[1771877870501,12.40099788,78.04,78.011,3.69019036]
[1771877870803,3.69383402,78.071,77.992,5.64518502]
[1771877870804,12.40099788,78.05,78.013,3.69019036]
[1771877870969,3.46147465,78.049,78.013,3.69019036]
[1771877871168,12.40099788,78.04,78.013,3.69019036]
[1771877871691,15.58099703,78.05,78.013,3.69019036]
[1771877871882,12.40099788,78.03,78.008,12.81911851]
[1771877872277,3.46147465,78.039,78.009,3.69019036]
[1771877872871,3.46147465,78.039,77.991,3.69019036]
[1771877872872,12.40099788,78.03,77.991,3.69019036]
[1771877874091,3.69383402,78.061,77.985,32.05731935]
[1771877874092,15.2069068,78.082,78.01,12.40099788]
[1771877874393,3.46147465,78.089,78.034,3.69383402]
[1771877874578,3.46147465,78.079,78.05,12.40099788]
[1771877874773,3.46147465,78.079,78.048,3.69019036]
[1771877874774,3.46147465,78.09,78.061,44.83673024]
[1771877875088,3.46147465,78.09,78.062,3.69019036]
[1771877875265,0.2,78.098,78.061,44.83673024]
[1771877875266,1e-08,78.098,78.081,3.69019036]
[1771877875468,1e-08,78.098,78.061,44.83673024]
[1771877875680,3.46147465,78.097,78.062,3.69019036]
[1771877876189,1e-08,78.098,78.081,3.69019036]
[1771877876489,3.46147465,78.126,78.091,3.69019036]
[1771877877169,3.46147465,78.126,78.092,12.805409]
[1771877877371,12.40099788,78.12,78.093,3.69019036]
[1771877878488,12.8,78.125,78.07,5.36086188]
[1771877878489,3.46147465,78.109,78.076,12.80803319]
[1771877878674,3.46147465,78.109,78.077,3.69019036]
[1771877878876,3.46147465,78.109,78.081,3.69019036]
[1771877879291,3.46147465,78.109,78.082,12.80704899]
[1771877881378,12.40099788,78.12,78.09,12.40099788]
[1771877881677,3.46147465,78.119,78.09,12.40099788]
[1771877881881,3.46147465,78.119,78.083,3.69019036]
[1771877882974,3.46147465,78.119,78.09,16.09118824]
[1771877883286,3.46147465,78.119,78.09,3.69019036]
[1771877883594,3.69383402,78.143,78.07,5.36086188]
[1771877883595,3.46147465,78.109,78.072,3.69019036]
[1771877883795,12.40099788,78.1,78.072,3.69019036]
[1771877884094,3.46147465,78.109,78.072,3.69019036]
[1771877884476,3.46147465,78.109,78.055,44.84017679]
[1771877884477,12.80052318,78.122,78.091,3.69019036]
[1771877884774,12.40099788,78.12,78.091,3.69019036]
[1771877885076,3.46147465,78.119,78.091,3.69019036]
[1771877886294,3.46147465,78.117,78.091,3.69019036]
[1771877886889,12.40099788,78.1,78.071,3.69019036]
[1771877887083,12.40099788,78.11,78.072,3.69019036]
[1771877887581,12.80114698,78.118,78.081,3.69019036]
[1771877887777,31.99926491,78.127,78.091,3.69019036]
[1771877888490,31.99926491,78.127,78.093,3.69019036]
[1771877888997,12.40099788,78.12,78.093,3.69019036]
[1771877889198,2.55280337,78.119,78.085,3.69019036]
[1771877889494,1.61272269,78.119,78.085,3.69019036]
[1771877890000,12.40099788,78.11,78.085,3.69019036]
[1771877890382,12.80235216,78.111,78.085,16.49661781]
[1771877891495,1.6081612,78.117,78.085,16.49661781]
[1771877891703,1.60597632,78.125,78.091,3.69019036]
[1771877891884,12.40099788,78.12,78.091,3.69019036]
[1771877892198,14.0069742,78.12,78.091,3.69019036]
[1771877892412,1.60597632,78.119,78.091,3.69019036]
[1771877892575,12.40099788,78.12,78.091,3.69019036]
[1771877892780,12.79983616,78.126,78.091,3.69019036]
[1771877893800,1.60167394,78.125,78.091,12.80557298]
[1771877893993,1.60167394,78.109,78.076,32.01989139]
[1771877894198,1.60167394,78.109,78.077,3.69019036]
[1771877895581,12.40099788,78.11,78.08,12.40099788]
[1771877895793,1.59735121,78.117,78.081,3.69019036]
[1771877896089,12.40099788,78.11,78.082,12.80704899]
[1771877896287,12.80089584,78.12,78.083,3.69019036]
[1771877896493,12.79983616,78.126,78.091,3.69019036]
[1771877896890,12.79872929,78.133,78.101,3.69019036]
[1771877897102,12.79798514,78.138,78.111,3.69019036]
[1771877897603,1.59529686,78.144,78.111,3.69019036]
[1771877897604,14.39221648,78.144,78.111,3.69019036]
[1771877898103,14.39221648,78.144,78.112,16.36441816]
[1771877898104,12.40099788,78.14,78.112,16.36441816]
[1771877898304,12.40099788,78.13,78.103,3.56228789]
[1771877898500,12.79691962,78.144,78.103,3.56228789]
[1771877898501,13.99215545,78.14,78.103,3.56228789]
[1771877898699,1.59115757,78.139,78.103,3.56228789]
[1771877898999,12.40099788,78.13,78.103,3.56228789]
[1771877899689,13.98816968,78.14,78.103,3.56228789]
[1771877899888,1.5871718,78.139,78.103,3.56228789]
[1771877901907,1.58130538,78.137,78.105,3.77718189]
[1771877902504,12.40099788,78.13,78.105,3.77718189]
[1771877904385,1.58130538,78.131,78.106,12.80311371]
[1771877905003,26.77578491,78.13,78.106,12.80311371]
[1771877905588,14.37478703,78.13,78.106,12.80311371]
[1771877905905,12.79787043,78.138,78.11,12.40099788]
[1771877906085,103.5,78.162,78.111,3.77718189]
[1771877906086,12.40099788,78.15,78.111,3.77718189]
[1771877906387,12.40099788,78.15,78.113,3.77718189]
[1771877906388,12.79606904,78.149,78.113,3.77718189]
[1771877906786,14.36801307,78.149,78.113,3.77718189]
[1771877907003,1.57194403,78.148,78.113,3.77718189]
[1771877907503,1.57194403,78.148,78.106,32.00778429]
[1771877907504,12.40099788,78.14,78.051,51.24827845]
[1771877907706,1.57194403,78.129,78.091,3.77718189]
[1771877907901,12.79606904,78.149,78.111,3.77718189]
[1771877907902,1.57015229,78.148,78.111,3.77718189]
[1771877908099,12.40099788,78.14,78.111,3.77718189]
[1771877908913,1.56832938,78.146,78.113,3.77718189]
[1771877909094,3.69383402,78.163,78.112,12.80213027]
[1771877909095,12.40099788,78.16,78.131,3.77718189]
[1771877909408,12.79328608,78.166,78.131,3.77718189]
[1771877909815,14.35983937,78.166,78.131,3.77718189]
[1771877909990,1.56655329,78.165,78.131,3.77718189]
[1771877910309,1.56655329,78.149,78.126,0.2]
[1771877910510,13.96755117,78.15,78.126,0.2]
[1771877911312,7.11100018,78.15,78.127,12.79967232]
[1771877911806,12.79485902,78.157,78.128,3.77718189]
[1771877912010,5.54444689,78.15,78.128,3.77718189]
[1771877912393,5.54444689,78.16,78.128,3.77718189]
[1771877912595,12.79443186,78.159,78.128,3.77718189]
[1771877913411,1.56307525,78.166,78.131,3.77718189]
[1771877913623,5.74444689,78.17,78.131,3.77718189]
[1771877913624,5.54444689,78.16,78.131,3.77718189]
[1771877914715,5.74444689,78.17,78.141,3.77718189]
[1771877915219,12.56814129,78.17,78.141,3.77718189]
[1771877916017,12.56814129,78.17,78.143,3.77718189]
[1771877916600,0.2,78.17,78.143,3.77718189]
[1771877916996,12.56814129,78.17,78.143,3.77718189]
[1771877917916,12.56814129,78.17,78.149,3.77718189]
[1771877918520,0.2,78.17,78.151,3.77718189]
[1771877919706,12.56814129,78.17,78.153,3.77718189]
[1771877920023,0.2,78.17,78.153,3.77718189]
[1771877920802,0.2,78.2,78.161,3.77718189]
[1771877920803,1.54829016,78.194,78.161,3.77718189]
[1771877921118,12.36814129,78.19,78.161,3.77718189]
[1771877921323,12.56814129,78.2,78.161,3.77718189]
[1771877921498,12.56814129,78.2,78.171,3.77718189]
[1771877921499,0.2,78.2,78.171,3.77718189]
[1771877921700,0.2,78.2,78.172,12.79230414]
[1771877922010,12.78485594,78.218,78.181,3.77718189]
[1771877922919,25.15275406,78.22,78.181,3.77718189]
[1771877923121,12.36814129,78.22,78.191,3.77718189]
[1771877923413,12.78319626,78.228,78.191,3.77718189]
[1771877923657,12.36814129,78.23,78.191,3.77718189]
[1771877923819,12.36814129,78.23,78.203,3.77718189]
[1771877924202,1.94451482,78.24,78.202,12.78739674]
[1771877924203,12.36814129,78.24,78.211,3.77718189]
[1771877924420,12.36814129,78.23,78.211,3.77718189]
[1771877924627,12.36814129,78.24,78.211,3.77718189]
[1771877925027,1.94331379,78.239,78.211,3.77718189]
[1771877925206,1.94331379,78.239,78.202,44.75588859]
[1771877925207,12.34964541,78.23,78.204,3.77718189]
[1771877926235,1.94213747,78.228,78.196,3.77718189]
[1771877926528,12.34964541,78.22,78.196,3.77718189]
[1771877926703,1.94213747,78.223,78.187,3.77718189]
[1771877926907,1.94098797,78.219,78.187,3.77718189]
[1771877927710,1.93985511,78.228,78.191,3.63359573]
[1771877928018,12.78298329,78.229,78.191,3.63359573]
[1771877928215,12.78228617,78.234,78.202,3.63359573]
[1771877928435,14.7185026,78.249,78.211,3.63359573]
[1771877928730,12.34964541,78.24,78.211,3.63359573]
[1771877931042,25.13094494,78.24,78.212,12.78576177]
[1771877931213,25.13094494,78.24,78.213,3.48251717]
[1771877931407,12.54964541,78.25,78.213,3.48251717]
[1771877931607,0.2,78.25,78.221,3.48251717]
[1771877932106,12.54964541,78.25,78.221,3.48251717]
[1771877932421,25.32927866,78.25,78.221,3.48251717]
[1771877933453,12.34964541,78.24,78.212,3.48251717]
[1771877933730,57.27816044,78.25,78.214,3.48251717]
[1771877933914,44.92851503,78.25,78.214,3.48251717]
[1771877934226,57.27816044,78.25,78.214,3.48251717]
[1771877934423,1.93122263,78.249,78.214,3.48251717]
[1771877935419,57.27816044,78.25,78.214,3.48251717]
[1771877935420,12.34964541,78.24,78.214,3.48251717]
[1771877935617,44.72957774,78.248,78.199,3.48251717]
[1771877935618,14.27879168,78.23,78.199,3.48251717]
[1771877936441,12.34964541,78.23,78.199,3.48251717]
[1771877938523,12.34964541,78.23,78.174,3.69383402]
[1771877938524,12.34964541,78.22,78.191,3.48251717]
[1771877938725,12.34964541,78.22,78.192,3.48251717]
[1771877938726,1.92712632,78.219,78.192,3.48251717]
[1771877938923,12.34964541,78.22,78.192,3.48251717]
[1771877940141,14.7081372,78.229,78.192,3.48251717]
[1771877940545,14.7081372,78.229,78.193,12.78886856]
[1771877940843,12.78298329,78.229,78.194,3.48251717]
[1771877941217,1.92417861,78.228,78.194,3.48251717]
[1771877942531,12.78461754,78.219,78.194,3.48251717]
[1771877942718,14.70689622,78.219,78.194,3.48251717]
[1771877943126,12.78410446,78.223,78.195,3.48251717]
[1771877944031,12.34964541,78.22,78.195,3.48251717]
[1771877944636,12.78331011,78.227,78.197,3.48251717]
[1771877947235,12.34964541,78.22,78.197,3.48251717]
[1771877947442,1.91862984,78.219,78.19,3.48251717]
[1771877948742,1.91862984,78.219,78.182,31.97657288]
[1771877948743,12.78478099,78.218,78.192,3.48251717]
[1771877952543,12.34964541,78.23,78.194,3.48251717]
[1771877952948,14.25017477,78.23,78.194,3.48251717]
[1771877953152,1.90052936,78.229,78.194,3.48251717]